bitfinex/quotes_SOLUSD_20220113
["timestamp","ask_amount","ask_price","bid_price","bid_amount"]
[1642081111271,18.99054667,154.45,154.3,88.95613388]
[1642081111472,18.99054667,154.45,154.31,1.17213388]
[1642081111671,18.99054667,154.45,154.31,10.51213388]
[1642081111871,18.99054667,154.45,154.38,9.7144]
[1642081112072,18.99054667,154.45,154.38,9.9644]
[1642081112474,19.24054667,154.45,154.38,9.9644]
[1642081112872,18.99054667,154.45,154.38,9.9644]
[1642081114675,2.591,154.47,154.38,9.9644]
[1642081114879,77.5135,154.48,154.38,9.9644]
[1642081115079,74.9235,154.48,154.38,9.9644]
[1642081115282,2.59,154.52,154.38,15.8984]
[1642081115476,84.3373,154.52,154.38,21.8984]
[1642081115676,20.7967178,154.51,154.38,21.8984]
[1642081115877,2.589,154.5,154.38,21.8984]
[1642081116076,8.589,154.5,154.38,21.8984]
[1642081116277,8.589,154.5,154.38,9.9644]
[1642081116479,8.839,154.5,154.38,9.9644]
[1642081117079,18.5521,154.5,154.38,9.9644]
[1642081117979,18.3021,154.5,154.38,9.9644]
[1642081118480,2.589,154.5,154.38,9.9644]
[1642081118881,2.589,154.5,154.38,15.9644]
[1642081119282,2.839,154.5,154.38,15.9644]
[1642081120980,2.839,154.5,154.38,9.9644]
[1642081121380,2.839,154.5,154.38,9.7144]
[1642081121582,12.179,154.5,154.38,9.7144]
[1642081121982,18.179,154.5,154.38,9.7144]
[1642081123285,27.8918,154.5,154.38,9.7144]
[1642081123483,27.8918,154.5,154.38,9.9644]
[1642081124584,27.8918,154.5,154.38,15.9644]
[1642081124785,18.179,154.5,154.38,15.9644]
[1642081126187,27.8919,154.5,154.38,15.9644]
[1642081126989,17.929,154.5,154.38,15.9644]
[1642081127189,11.929,154.5,154.38,16.2244]
[1642081127389,9.34,154.5,154.38,16.2244]
[1642081127591,9.34,154.5,154.44,9.71]
[1642081127991,20.7967178,154.51,154.44,9.96]
[1642081128993,10.39088653,154.54,154.44,9.96]
[1642081129394,16.39088653,154.54,154.44,9.96]
[1642081129594,16.39088653,154.54,154.44,15.96]
[1642081129797,18.97988653,154.54,154.44,9.71]
[1642081129996,23.73567237,154.53,154.42,9.7116]
[1642081130194,77.099,154.52,154.34,33.608]
[1642081130398,124.0299,154.52,154.37,6.0]
[1642081130595,130.2799,154.52,154.34,39.608]
[1642081130796,143.743,154.52,154.34,104.778]
[1642081130995,143.743,154.52,154.35,17.75181633]
[1642081131193,9.7132,154.5,154.4,9.7129]
[1642081131395,2.589,154.49,154.4,9.7129]
[1642081131593,2.839,154.49,154.4,9.7129]
[1642081132999,2.839,154.49,154.4,9.9629]
[1642081133197,12.5521,154.49,154.4,9.9629]
[1642081134620,18.5521,154.49,154.4,9.9629]
[1642081134821,12.3021,154.49,154.4,9.9629]
[1642081135021,18.3021,154.49,154.4,9.9629]
[1642081135824,9.34,154.48,154.4,9.9629]
[1642081136023,20.60295309,154.47,154.4,9.9629]
[1642081137526,20.85295309,154.47,154.4,9.9629]
[1642081138130,0.25,154.47,154.4,9.9629]
[1642081138331,75.1285,154.49,154.4,9.9629]
[1642081138729,75.1285,154.49,154.4,15.9629]
[1642081138932,75.1285,154.49,154.4,9.9629]
[1642081139232,75.1285,154.49,154.45,9.7103]
[1642081139431,125.564,154.52,154.45,9.7103]
[1642081139631,21.95185311,154.53,154.45,9.7103]
[1642081139832,6.0,154.53,154.45,15.9603]
[1642081140031,90.82968653,154.54,154.45,15.9603]
[1642081140231,81.11948653,154.54,154.45,15.9603]
[1642081140634,81.11948653,154.54,154.48,0.06]
[1642081140831,74.0686,154.54,154.48,0.06]
[1642081141030,74.3186,154.54,154.48,0.06]
[1642081141630,74.0686,154.54,154.48,0.06]
[1642081142234,74.0686,154.54,154.48,9.7684]
[1642081142435,9.34,154.55,154.48,10.0184]
[1642081142638,24.79712495,154.57,154.48,10.0184]
[1642081142837,6.0,154.55,154.48,16.0184]
[1642081143036,0.25,154.55,154.48,16.0184]
[1642081143836,0.25,154.55,154.48,10.0184]
[1642081144241,25.04712495,154.57,154.48,10.0184]
[1642081145269,25.04712495,154.57,154.48,16.0184]
[1642081145470,25.04712495,154.57,154.48,10.0184]
[1642081145874,31.04712495,154.57,154.48,10.0184]
[1642081146076,31.04712495,154.57,154.48,16.0184]
[1642081147377,25.04712495,154.57,154.48,16.0184]
[1642081149374,22.45912495,154.57,154.48,16.0184]
[1642081150176,32.16732495,154.57,154.48,16.0184]
[1642081150575,38.16732495,154.57,154.48,16.0184]
[1642081150779,38.16732495,154.57,154.48,10.0184]
[1642081151387,32.16732495,154.57,154.48,10.0184]
[1642081152380,22.45912495,154.57,154.48,10.0184]
[1642081152779,22.45912495,154.57,154.48,16.0184]
[1642081155084,22.45912495,154.57,154.48,10.0184]
[1642081155984,22.20912495,154.57,154.48,10.0184]
[1642081156186,22.45912495,154.57,154.48,10.0184]
[1642081156390,22.20912495,154.57,154.48,16.0184]
[1642081156587,121.0341,154.58,154.48,16.0184]
[1642081156987,68.1188,154.58,154.48,16.2784]
[1642081157786,68.1188,154.58,154.48,16.0184]
[1642081160592,2.588,154.6,154.48,81.1884]
[1642081160791,2.588,154.61,154.49,9.34]
[1642081160993,0.25,154.61,154.55,9.7023]
[1642081161394,0.25,154.61,154.55,15.9523]
[1642081162294,26.4511,154.62,154.55,15.9523]
[1642081163896,26.4511,154.62,154.55,9.9523]
[1642081164296,26.4511,154.62,154.55,15.9523]
[1642081164701,2.588,154.62,154.55,15.9523]
[1642081165105,2.588,154.62,154.55,9.9523]
[1642081165501,9.34,154.63,154.55,9.9523]
[1642081165902,15.34,154.63,154.55,9.9523]
[1642081166103,9.34,154.63,154.55,9.9523]
[1642081166302,9.59,154.63,154.55,9.9523]
[1642081166504,9.59,154.63,154.55,15.9523]
[1642081166903,15.59,154.63,154.55,15.9523]
[1642081167102,9.59,154.63,154.55,9.9523]
[1642081167402,9.59,154.63,154.48,0.06]
[1642081167603,26.8498,154.62,154.49,6.0]
[1642081167802,36.1898,154.62,154.48,0.06]
[1642081168002,42.4398,154.62,154.48,0.06]
[1642081168203,42.4398,154.62,154.48,21.81050862]
[1642081168407,42.4398,154.62,154.48,27.81050862]
[1642081168606,9.7063,154.6,154.5,9.7071]
[1642081168805,2.588,154.59,154.5,9.7071]
[1642081169004,18.65759287,154.58,154.5,9.7071]
[1642081169208,2.588,154.57,154.5,9.7071]
[1642081169405,21.49559287,154.58,154.5,9.7071]
[1642081169605,0.25,154.57,154.5,9.7071]
[1642081170106,18.65759287,154.58,154.5,9.7071]
[1642081170305,24.65759287,154.58,154.5,9.7071]
[1642081170505,24.65759287,154.58,154.5,9.9571]
[1642081170506,24.90759287,154.58,154.5,9.9571]
[1642081170708,18.90759287,154.58,154.5,9.9571]
[1642081172025,24.90759287,154.58,154.5,9.9571]
[1642081172225,34.61499287,154.58,154.5,9.9571]
[1642081173426,9.34,154.57,154.48,0.06]
[1642081173626,96.9228,154.57,154.48,0.06]
[1642081173826,103.1728,154.57,154.48,0.06]
[1642081174429,105.015946,154.57,154.48,0.06]
[1642081175831,102.427946,154.57,154.48,0.06]
[1642081176831,105.015946,154.57,154.48,0.06]
[1642081177033,99.015946,154.57,154.48,0.06]
[1642081177230,99.015946,154.57,154.48,9.7683]
[1642081177431,99.015946,154.57,154.48,10.0183]
[1642081178433,105.015946,154.57,154.48,10.0183]
[1642081179133,95.307346,154.57,154.48,10.0183]
[1642081179933,93.4642,154.57,154.48,10.0183]
[1642081180233,103.1723,154.57,154.48,10.0183]
[1642081185550,93.4642,154.57,154.48,10.0183]
[1642081188450,93.4642,154.57,154.48,16.0183]
[1642081189750,2.588,154.57,154.49,17.09724889]
[1642081189951,1.843146,154.58,154.53,9.7052]
[1642081190152,1.843146,154.58,154.53,17.7192]
[1642081190449,1.843146,154.58,154.53,23.9692]
[1642081191249,1.843146,154.62,154.53,23.9692]
[1642081192049,1.343146,154.62,154.53,23.9692]
[1642081192550,2.9215094,154.63,154.53,23.9692]
[1642081195353,3.1715094,154.63,154.53,15.7052]
[1642081195554,2.587,154.62,154.53,15.9552]
[1642081195753,8.587,154.62,154.53,9.9552]
[1642081196153,6.0,154.62,154.53,9.9552]
[1642081196354,6.0,154.62,154.53,15.9552]
[1642081196552,2.9215094,154.63,154.53,16.2152]
[1642081196753,2.9215094,154.63,154.53,15.9552]
[1642081197453,2.9215094,154.63,154.53,16.2152]
[1642081197855,2.9215094,154.63,154.53,15.9552]
[1642081198053,2.9215094,154.63,154.53,16.2152]
[1642081198254,2.9215094,154.63,154.53,15.9552]
[1642081198454,2.9215094,154.63,154.53,16.2152]
[1642081199754,2.9215094,154.63,154.54,9.34]
[1642081199954,2.9215094,154.63,154.58,9.698]
[1642081200354,2.9215094,154.63,154.58,15.948]
[1642081200757,1.2021685,154.65,154.59,89.0]
[1642081200957,1.2021685,154.65,154.62,9.6955]
[1642081201155,1.2021685,154.65,154.62,16.9325]
[1642081201357,3.62904633,154.7,154.62,23.1825]
[1642081201557,3.62904633,154.7,154.63,19.01755944]
[1642081201756,21.7057794,154.73,154.63,19.01755944]
[1642081201958,21.9557794,154.73,154.63,25.26755944]
[1642081202158,21.9557794,154.73,154.66,9.6959]
[1642081202356,2.836,154.73,154.66,9.6959]
[1642081202563,2.586,154.73,154.66,22.1389]
[1642081202762,3.62904633,154.75,154.66,22.1389]
[1642081203159,3.62904633,154.75,154.66,9.9459]
[1642081203358,5.27904154,154.75,154.65,9.6975]
[1642081203558,5.27904154,154.75,154.58,34.3324]
[1642081203559,11.925,154.74,154.58,34.3324]
[1642081203758,59.2926,154.74,154.6,0.25]
[1642081203960,66.94259521,154.74,154.6,0.25]
[1642081204159,9.6984,154.72,154.6,32.5757]
[1642081204362,97.27410068,154.71,154.61,20.04342804]
[1642081204558,97.52410068,154.71,154.61,26.29342804]
[1642081205204,97.27410068,154.71,154.63,9.6988]
[1642081205607,97.27410068,154.71,154.63,9.9488]
[1642081207105,94.68810068,154.71,154.63,15.9488]
[1642081207804,94.68810068,154.71,154.58,34.3324]
[1642081208006,2.586,154.7,154.61,0.25]
[1642081208603,8.586,154.7,154.61,0.25]
[1642081208833,8.586,154.7,154.6,9.7001]
[1642081209004,9.7006,154.68,154.58,6.0]
[1642081209205,2.586,154.67,154.57,6.0]
[1642081209405,2.586,154.67,154.55,6.0]
[1642081209606,50.3347,154.67,154.52,16.51213388]
[1642081209805,56.3347,154.67,154.53,18.0298325]
[1642081210108,56.3347,154.67,154.53,24.2798325]
[1642081210609,56.3347,154.67,154.53,24.0298325]
[1642081211007,56.3347,154.67,154.53,25.46196638]
[1642081211209,19.41310618,154.63,154.55,9.7038]
[1642081211419,19.41310618,154.63,154.53,25.20196638]
[1642081211608,25.41310618,154.63,154.53,25.20196638]
[1642081211907,6.0,154.63,154.53,27.3698325]
[1642081212107,9.7034,154.64,154.54,9.7039]
[1642081212508,15.7034,154.64,154.54,9.7039]
[1642081212911,16.81787961,154.63,154.54,15.7039]
[1642081213110,22.81787961,154.63,154.54,9.7039]
[1642081213309,23.06787961,154.63,154.54,9.7039]
[1642081213509,2.587,154.62,154.51,32.3445]
[1642081213709,12.2913,154.62,154.53,9.705]
[1642081213909,18.5413,154.62,154.53,9.705]
[1642081214509,18.5413,154.62,154.53,9.955]
[1642081215110,18.5413,154.62,154.52,9.7057]
[1642081215411,20.19129521,154.62,154.5,6.0]
[1642081215614,9.34,154.61,154.5,6.0]
[1642081215810,2.588,154.6,154.5,6.0]
[1642081216010,21.45121632,154.55,154.48,0.06]
[1642081216812,21.45121632,154.55,154.48,9.7682]
[1642081217012,21.45121632,154.55,154.48,10.0182]
[1642081217618,9.7082,154.56,154.48,10.0182]
[1642081217814,9.707,154.58,154.48,10.0182]
[1642081218015,9.957,154.58,154.48,10.0182]
[1642081218415,2.588,154.6,154.48,16.0182]
[1642081218614,21.7101548,154.59,154.48,17.19033388]
[1642081220324,31.4161548,154.59,154.48,16.94033388]
[1642081220520,37.4161548,154.59,154.48,16.94033388]
[1642081220919,31.4161548,154.59,154.48,16.94033388]
[1642081221521,2.588,154.58,154.48,17.19033388]
[1642081221721,37.4161548,154.59,154.48,17.19033388]
[1642081222322,37.4161548,154.59,154.48,11.19033388]
[1642081222522,21.7101548,154.59,154.48,17.19033388]
[1642081226653,11.928,154.61,154.48,17.19033388]
[1642081226847,9.34,154.61,154.48,17.45033388]
[1642081227348,15.34,154.61,154.48,17.45033388]
[1642081227747,26.25612828,154.61,154.48,82.62033388]
[1642081227947,2.588,154.6,154.48,82.62033388]
[1642081228247,2.588,154.6,154.49,9.34]
[1642081228447,19.50412828,154.61,154.54,9.703]
[1642081228854,19.50412828,154.61,154.54,9.953]
[1642081229149,2.588,154.61,154.54,9.953]
[1642081229550,24.8491,154.62,154.54,15.953]
[1642081233052,24.8491,154.62,154.54,9.953]
[1642081233252,2.587,154.61,154.54,0.25]
[1642081233452,2.587,154.61,154.5,32.3481]
[1642081233652,26.622,154.61,154.5,32.3481]
[1642081233856,26.622,154.61,154.5,38.3481]
[1642081234453,32.622,154.61,154.5,38.3481]
[1642081234855,42.3273,154.61,154.52,9.7057]
[1642081235254,42.3273,154.61,154.48,56.14260293]
[1642081235255,65.17,154.6,154.48,56.14260293]
[1642081235456,2.588,154.59,154.48,56.14260293]
[1642081235857,2.838,154.59,154.48,56.14260293]
[1642081236058,8.838,154.59,154.48,56.14260293]
[1642081236257,8.838,154.59,154.48,54.97046905]
[1642081236461,8.838,154.59,154.48,61.22046905]
[1642081236859,2.838,154.59,154.5,9.7065]
[1642081237257,8.838,154.59,154.5,9.7065]
[1642081238260,2.838,154.59,154.5,9.7065]
[1642081238661,23.785,154.61,154.5,9.9565]
[1642081238862,23.785,154.61,154.5,17.12863388]
[1642081239064,23.785,154.61,154.5,17.38863388]
[1642081239262,23.785,154.61,154.5,17.12863388]
[1642081240065,23.785,154.61,154.5,17.38863388]
[1642081240265,23.785,154.61,154.5,17.12863388]
[1642081241166,23.785,154.61,154.51,0.06]
[1642081241365,23.785,154.61,154.55,9.7036]
[1642081241568,23.785,154.61,154.55,9.9536]
[1642081242966,30.035,154.61,154.55,9.7036]
[1642081243166,24.035,154.61,154.54,9.7045]
[1642081243566,30.035,154.61,154.49,32.3512]
[1642081243767,2.587,154.6,154.49,32.3512]
[1642081243968,8.837,154.6,154.49,38.3512]
[1642081244368,8.837,154.6,154.49,32.3512]
[1642081244569,27.8828,154.6,154.43,30.18272668]
[1642081244769,27.8828,154.6,154.43,10.43270624]
[1642081244969,27.8828,154.6,154.43,3.67683101]
[1642081245570,79.3448,154.6,154.43,3.67683101]
[1642081245767,80.99479521,154.6,154.43,6.0]
[1642081245968,80.99479521,154.6,154.42,25.88767677]
[1642081246168,80.99479521,154.6,154.45,9.7104]
[1642081246471,80.99479521,154.6,154.42,6.0]
[1642081246673,51.462,154.58,154.42,6.0]
[1642081246969,9.7115,154.51,154.41,9.67683101]
[1642081247170,9.7115,154.51,154.39,3.67683101]
[1642081247372,15.9615,154.51,154.4,17.27705933]
[1642081248271,15.9615,154.51,154.42,9.7121]
[1642081249471,15.9615,154.51,154.41,9.7128]
[1642081249677,2.589,154.5,154.41,9.7128]
[1642081249871,9.7126,154.49,154.41,9.7128]
[1642081250101,84.1621,154.51,154.41,9.9628]
[1642081250273,6.25,154.5,154.41,9.9628]
[1642081251174,15.9618,154.5,154.41,9.9628]
[1642081251377,9.9618,154.5,154.41,9.9628]
[1642081251572,18.5508,154.5,154.41,9.9628]
[1642081251779,76.15999521,154.49,154.34,13.03250629]
[1642081251972,76.15999521,154.49,154.34,9.661]
[1642081251973,2.59,154.48,154.34,9.661]
[1642081252172,23.6999,154.47,154.34,9.661]
[1642081252373,9.7148,154.45,154.34,36.05923101]
[1642081252575,33.8961,154.45,154.35,21.01822788]
[1642081252773,30.1813,154.45,154.35,21.01822788]
[1642081252975,30.4313,154.45,154.35,21.01822788]
[1642081253173,30.4313,154.45,154.37,9.7154]
[1642081253573,24.1813,154.45,154.37,15.9654]
[1642081253873,77.9121,154.51,154.39,65.17]
[1642081254073,3.62904633,154.55,154.44,9.7104]
[1642081254480,6.21804633,154.55,154.44,9.9604]
[1642081254674,21.58179744,154.54,154.44,9.9604]
[1642081255074,21.83179744,154.54,154.44,9.9604]
[1642081255273,21.83179744,154.54,154.44,11.13253388]
[1642081255476,21.58179744,154.54,154.44,11.13253388]
[1642081255677,21.58179744,154.54,154.44,9.9604]
[1642081256279,21.58179744,154.54,154.44,11.13253388]
[1642081256480,21.58179744,154.54,154.44,17.13253388]
[1642081256683,21.83179744,154.54,154.44,17.13253388]
[1642081257282,21.58179744,154.54,154.44,17.13253388]
[1642081259425,27.58179744,154.54,154.44,17.13253388]
[1642081260725,27.83179744,154.54,154.44,15.7104]
[1642081261527,2.589,154.55,154.44,16.88253388]
[1642081261729,2.589,154.58,154.51,9.7051]
[1642081261931,130.8508,154.62,154.51,9.7051]
[1642081262125,130.8508,154.62,154.51,9.9551]
[1642081262525,18.88283483,154.58,154.51,9.9551]
[1642081264229,130.8508,154.62,154.51,9.9551]
[1642081264429,5.2998359,154.59,154.51,9.9551]
[1642081264825,5.2998359,154.59,154.51,15.9551]
[1642081265232,5.0498359,154.59,154.51,15.9551]
[1642081265426,2.4618359,154.59,154.52,1.17213388]
[1642081265627,2.4618359,154.59,154.55,9.7017]
[1642081266127,2.4618359,154.59,154.55,9.9517]
[1642081266526,2.4618359,154.59,154.55,15.9517]
[1642081267925,2.7118359,154.59,154.55,15.7017]
[1642081268125,2.4618359,154.59,154.55,15.7017]
[1642081269026,128.2618,154.62,154.56,30.0]
[1642081269227,49.687,154.62,154.58,9.7021]
[1642081269425,67.758,154.65,154.58,9.7021]
[1642081270128,67.758,154.65,154.58,9.9521]
[1642081270526,2.588,154.65,154.58,9.9521]
[1642081271727,79.9282,154.66,154.58,9.9521]
[1642081273429,80.1782,154.66,154.58,9.9521]
[1642081274130,86.1782,154.66,154.58,9.9521]
[1642081274329,80.1782,154.66,154.58,9.9521]
[1642081275631,196.8102,154.66,154.53,9.34]
[1642081275832,65.17,154.64,154.48,9.34]
[1642081276031,11.927,154.63,154.46,33.4235]
[1642081276232,65.17,154.62,154.46,33.4235]
[1642081276464,2.588,154.61,154.46,33.4235]
[1642081276664,21.42771794,154.59,154.47,23.58231883]
[1642081276863,24.01571794,154.59,154.52,9.7059]
[1642081277063,30.26571794,154.59,154.52,9.7059]
[1642081277464,24.26571794,154.59,154.52,9.9559]
[1642081277664,21.42771794,154.59,154.52,9.9559]
[1642081278268,21.67771794,154.59,154.52,9.9559]
[1642081282168,21.67771794,154.59,154.52,9.7059]
[1642081282368,21.67771794,154.59,154.51,9.7066]
[1642081282571,27.67771794,154.59,154.51,9.7066]
[1642081283570,21.67771794,154.59,154.51,9.7066]
[1642081284669,86.84771794,154.59,154.51,9.7066]
[1642081284871,86.84771794,154.59,154.48,41.693]
[1642081284872,92.84771794,154.59,154.5,9.7072]
[1642081285075,2.588,154.58,154.48,9.34]
[1642081285272,2.588,154.58,154.48,9.59]
[1642081285473,8.838,154.58,154.48,9.59]
[1642081286073,8.838,154.58,154.48,9.34]
[1642081286274,8.838,154.58,154.51,9.7064]
[1642081286475,6.25,154.58,154.51,9.7064]
[1642081287777,0.25,154.58,154.51,9.7064]
[1642081287979,6.0,154.58,154.51,9.7064]
[1642081288377,6.25,154.58,154.51,9.7064]
[1642081288583,6.25,154.58,154.48,9.34]
[1642081288778,9.9571,154.58,154.48,9.34]
[1642081288975,15.9571,154.58,154.48,9.34]
[1642081289578,9.9571,154.58,154.48,9.59]
[1642081289778,2.588,154.57,154.48,9.59]
[1642081289978,12.5455,154.57,154.49,9.7078]
[1642081290577,8.838,154.57,154.49,9.7078]
[1642081292079,2.838,154.57,154.49,9.7078]
[1642081292980,2.588,154.57,154.49,9.9578]
[1642081293383,25.981,154.58,154.49,9.9578]
[1642081294281,26.231,154.58,154.49,9.9578]
[1642081294883,32.231,154.58,154.49,9.9578]
[1642081296081,41.9377,154.58,154.49,9.9578]
[1642081297087,41.9377,154.58,154.49,9.7078]
[1642081299989,41.9377,154.58,154.49,9.9578]
[1642081300492,3.62904633,154.63,154.5,9.34]
[1642081300690,3.62904633,154.63,154.57,9.7007]
[1642081301089,3.62904633,154.63,154.57,15.9507]
[1642081301491,3.62904633,154.63,154.58,21.58080741]
[1642081301690,16.97913646,154.67,154.56,9.34]
[1642081301889,2.587,154.66,154.56,9.34]
[1642081302091,8.587,154.66,154.5,3.67683101]
[1642081302290,49.0145,154.65,154.51,9.34]
[1642081302492,2.587,154.64,154.51,9.34]
[1642081302717,78.4885,154.64,154.51,9.34]
[1642081302919,94.4446,154.64,154.51,19.0463]
[1642081303122,51.462,154.63,154.51,9.34]
[1642081303318,67.757,154.62,154.47,3.67683101]
[1642081303518,8.587,154.62,154.48,9.34]
[1642081303718,6.0,154.62,154.48,9.34]
[1642081303920,2.588,154.61,154.48,9.34]
[1642081304118,21.75133719,154.59,154.49,22.59498801]
[1642081304519,21.75133719,154.59,154.49,22.84498801]
[1642081304720,21.75133719,154.59,154.49,32.55258801]
[1642081304919,22.00133719,154.59,154.49,9.7076]
[1642081305522,24.58933719,154.59,154.49,9.7076]
[1642081305724,103.65093719,154.59,154.49,9.7076]
[1642081306021,103.65093719,154.59,154.49,27.98959019]
[1642081306922,103.65093719,154.59,154.49,28.23959019]
[1642081308622,103.65093719,154.59,154.49,29.41172407]
[1642081308823,103.65093719,154.59,154.49,28.23959019]
[1642081309024,103.65093719,154.59,154.49,9.7076]
[1642081309224,103.65093719,154.59,154.49,19.0476]
[1642081310227,101.06293719,154.59,154.49,19.0476]
[1642081310431,101.06293719,154.59,154.49,9.34]
[1642081310727,2.588,154.58,154.43,19.77436373]
[1642081310931,24.7925,154.57,154.44,3.67683101]
[1642081311232,2.588,154.56,154.44,3.67683101]
[1642081311429,2.588,154.56,154.44,27.06520759]
[1642081311628,23.7907,154.55,154.44,27.06520759]
[1642081311931,23.7907,154.55,154.45,9.7101]
[1642081312129,2.588,154.54,154.45,9.7101]
[1642081312428,24.0407,154.55,154.45,9.7101]
[1642081312631,0.25,154.54,154.45,15.7101]
[1642081312829,24.0407,154.55,154.45,15.7101]
[1642081313032,24.0407,154.55,154.45,11.55898117]
[1642081313631,67.758,154.54,154.45,1.84888117]
[1642081314031,140.5666,154.54,154.45,1.84888117]
[1642081314234,146.5666,154.54,154.45,1.84888117]
[1642081314438,65.17,154.52,154.45,1.84888117]
[1642081314632,2.589,154.51,154.45,1.84888117]
[1642081314833,2.589,154.51,154.43,1.84888117]
[1642081315032,74.009,154.51,154.43,1.84888117]
[1642081315234,71.42,154.51,154.43,1.84888117]
[1642081315434,65.42,154.51,154.43,1.84888117]
[1642081315936,0.25,154.51,154.42,1.84888117]
[1642081316134,2.589,154.5,154.43,9.7116]
[1642081316534,0.25,154.5,154.43,9.7116]
[1642081317637,74.009,154.52,154.43,9.7116]
[1642081317938,74.009,154.52,154.41,11.18888117]
[1642081318137,74.009,154.52,154.42,9.7121]
[1642081318138,83.7213,154.52,154.42,9.7121]
[1642081318743,74.009,154.52,154.42,9.7121]
[1642081319441,73.759,154.52,154.42,9.7121]
[1642081320846,74.009,154.52,154.42,9.7121]
[1642081322276,83.7213,154.52,154.42,9.7121]
[1642081325476,8.589,154.52,154.42,9.7121]
[1642081325677,72.5586,154.54,154.42,33.67223388]
[1642081326079,1.819636,154.57,154.42,33.67223388]
[1642081326578,1.819636,154.57,154.43,10.67766162]
[1642081326778,1.819636,154.57,154.5,9.7054]
[1642081326978,22.16946571,154.59,154.5,38.30799472]
[1642081327378,22.16946571,154.59,154.5,32.30799472]
[1642081327779,22.41946571,154.59,154.5,32.30799472]
[1642081329081,28.41946571,154.59,154.5,32.30799472]
[1642081330581,6.25,154.59,154.5,41.64799472]
[1642081330781,6.25,154.59,154.5,47.64799472]
[1642081331582,0.25,154.59,154.5,47.64799472]
[1642081331783,26.12707009,154.59,154.5,47.64799472]
[1642081331985,26.12707009,154.59,154.5,41.64799472]
[1642081332989,26.12707009,154.59,154.5,19.2954]
[1642081334188,26.12707009,154.59,154.5,40.27652671]
[1642081334690,0.25,154.59,154.5,40.27652671]
[1642081334888,0.25,154.59,154.5,47.44866059]
[1642081335088,99.5381,154.6,154.5,47.44866059]
[1642081335287,2.588,154.63,154.5,47.44866059]
[1642081335588,1.819636,154.64,154.5,47.44866059]
[1642081335788,1.819636,154.64,154.5,47.70866059]
[1642081335988,1.819636,154.64,154.5,58.38632221]
[1642081336192,7.819636,154.64,154.5,58.38632221]
[1642081336587,1.819636,154.65,154.5,47.44866059]
[1642081336788,28.948336,154.65,154.5,47.44866059]
[1642081337195,29.198336,154.65,154.5,47.44866059]
[1642081337990,35.198336,154.65,154.5,47.44866059]
[1642081338192,27.3787,154.65,154.5,47.44866059]
[1642081339192,27.3787,154.65,154.5,49.29754176]
[1642081339391,27.3787,154.65,154.51,10.67766162]
[1642081339591,24.7917,154.65,154.58,9.7014]
[1642081339791,0.25,154.65,154.58,9.7014]
[1642081339993,76.9327,154.66,154.59,9.34]
[1642081340393,2.587,154.67,154.59,15.59]
[1642081340592,4.405636,154.69,154.59,15.59]
[1642081340792,4.405636,154.69,154.6,23.67998177]
[1642081340993,4.405636,154.69,154.6,29.92998177]
[1642081341196,4.405636,154.69,154.62,9.6996]
[1642081341393,2.586,154.69,154.62,9.6996]
[1642081341592,2.586,154.7,154.62,15.6996]
[1642081341994,2.836,154.7,154.62,15.6996]
[1642081342693,2.836,154.7,154.62,9.6996]
[1642081343898,8.836,154.7,154.62,9.6996]
[1642081344105,2.836,154.7,154.62,9.6996]
[1642081344697,8.586,154.7,154.62,9.6996]
[1642081344898,2.586,154.7,154.62,9.9496]
[1642081345099,8.586,154.7,154.62,9.6996]
[1642081345297,8.586,154.7,154.62,9.9496]
[1642081345498,8.586,154.7,154.62,9.6996]